Cogmind - Beta 13 @@@ ROGUE MODE // 2024.04.03 @ 19:22:54 Player: CogEmotions! Result: Destroyed by B-75 Beast with Heavy Plasma Cannon Performance ------------- Evolutions (1) 500 Regions Visited (5) 1000 Robots Destroyed (35) 175 Value Destroyed (1079) 1079 Prototype IDs (2) 40 Alien Tech Used (0) 0 Bonus (299) 299 TOTAL SCORE: 3093 Bonus ------- Met Imprinter 300 Was Imprinted 300 Friendly Fire -301 Cogmind --------- Core Integrity 0/400 Matter 254/300 Energy 100/100 System Corruption 2% Temperature Cool (12) Movement Treading (460) Ox3 Location -6/Proximity Caves Parts ------- > --- POWER (1) -------- (None) > --- PROPULSION (2) --- Spiked Medium Treads > --- UTILITY (4) ------ Huge Storage Unit Improved Terrain Scan Processor Hacking Drone Bay (1/1) > --- WEAPON (2) ------- Slug Cannon > --- INVENTORY (25) --- Spiked Medium Treads Compact Battery (200) Large Matter Pod (150) Spectral Analyzer Improved Sensor Array 0b10 Decoder Chip [Scout] Targeting Computer Recoil Stabilizer Light Armor Plating Authchip [R/Combat] Relay Coupler [Grunt] (53) Particle Gun Storm Laser Heavy Beamcaster Light Assault Rifle Heavy Battle Rifle EMP Blaster Datajack Improved Datajack Flamer Peak State ------------ > --- POWER ------------ Fission Core > --- PROPULSION ------- Spiked Medium Treads Spiked Medium Treads > --- UTILITY ---------- Huge Storage Unit Improved Terrain Scan Processor Experimental System Shield Hacking Drone Bay > --- WEAPON ----------- Heavy Beamcaster Heavy Particle Cannon > --- INVENTORY -------- Spiked Medium Treads Compact Battery Large Matter Pod Spectral Analyzer Improved Sensor Array 0b10 Decoder Chip [Scout] Targeting Computer Recoil Stabilizer Light Armor Plating Authchip [R/Combat] Relay Coupler [Grunt] Particle Gun Storm Laser Light Assault Rifle Heavy Battle Rifle Slug Cannon EMP Blaster Datajack Improved Datajack Flamer [Rating: 53] Favorites ----------- Power Light Ion Engine Engine Light Ion Engine Power Core Fission Core Propulsion Wheel Treads Light Treads Leg Aluminum Leg Wheel Wheel Utility Huge Storage Unit Device Hacking Drone Bay Storage Huge Storage Unit Processor Improved Terrain Scan Processor Hackware Experimental System Shield Protection Light Armor Plating Weapon EMP Blaster Energy Gun Heavy Beamcaster Energy Cannon Beam Cannon Ballistic Gun Assault Rifle Ballistic Cannon Slug Cannon Launcher EMP Blaster Special Melee Weapon Datajack Build | -11 -10 -9 -9 -7 -6 ------- Run | Yrd Mat Mat Min Zio Pro Slots Evolved 2 | . . 2 . . . Power . | . . . . . . Propulsion . | . . . . . . Utility 2 | . . 2 . . . Weapon . | . . . . . . Parts Attached 58 | 6 16 28 . 6 2 Power 7 | 1 1 4 . 1 . Engine 6 | 1 1 4 . . . Core 1 | . . . . 1 . Reactor . | . . . . . . Propulsion 12 | 2 4 4 . 2 . Treads 6 | . 2 2 . 2 . Leg 4 | 2 2 . . . . Wheel 2 | . . 2 . . . Hover . | . . . . . . Flight . | . . . . . . Utility 11 | 1 4 4 . 2 . Device 2 | . . 1 . 1 . Storage 5 | 1 3 1 . . . Processor 2 | . 1 1 . . . Hackware 1 | . . . . 1 . Protection 1 | . . 1 . . . Artifact . | . . . . . . Weapon 28 | 2 7 16 . 1 2 Energy Gun 7 | 2 1 3 . 1 . Energy Cannon 8 | . 1 6 . . 1 Ballistic Gun 5 | . 3 2 . . . Ballistic Cannon 1 | . . . . . 1 Launcher 6 | . 1 5 . . . Special Weapon . | . . . . . . Impact Weapon . | . . . . . . Slashing Weapon . | . . . . . . Piercing Weapon . | . . . . . . Special Melee Weapon 1 | . 1 . . . . Unidentified Prototypes 2 | . . . . 2 . Parts Lost 21 | . 4 13 . . 4 Power 4 | . . 3 . . 1 Propulsion 7 | . 2 4 . . 1 Utility 2 | . . 1 . . 1 Weapon 8 | . 2 5 . . 1 Highest Loss Streak 7 | . 2 7 . . 2 To Critical Strikes . | . . . . . . Average Slot Usage (%) 96 | . 90 97 100 100 89 Engine 9 | . 14 10 11 8 . Core 1 | . . . . 2 7 Treads 11 | . 18 19 . 4 21 Leg 1 | . 8 . . . . Wheel 9 | . . 1 22 17 . Device 5 | . . 7 . 6 11 Storage 14 | . 14 11 22 15 11 Processor 15 | . 7 21 22 16 11 Hackware 3 | . . . . 5 7 Energy Gun 5 | . 4 4 . 6 8 Energy Cannon 3 | . 3 8 . . 7 Ballistic Gun 3 | . 13 4 . . . Launcher 9 | . 2 4 22 15 1 Naked Turns . | . . . . . . Heaviest Build 102 | 12 91 98 92 100 102 Greatest Support 56 | 20 40 40 20 56 56 Greatest Overweight (x) 31 | . 3 31 4 4 1 Average Overweight (x) 2 | . . 2 4 3 1 Largest Inventory Capacity 25 | 8 25 25 25 25 25 Average Capacity 22 | 7 13 25 25 25 25 Most Carried 25 | 5 15 23 16 25 23 Average Carried 17 | 1 7 15 16 22 23 Final Capacity 25 | 8 25 25 25 25 25 Final Carried 23 | 1 14 16 16 23 23 Class Distribution -------------------- 94% | Mutant 5% | Derelict-Mutant Dominant Class ---------------- Mutant | -10/Materials Mutant | -9/Materials Mutant | -9/Mines Mutant | -7/Zion Derelict-Mutant | -6/Proximity Caves Resources | -11 -10 -9 -9 -7 -6 ----------- Run | Yrd Mat Mat Min Zio Pro Matter Collected 1159 | 194 322 561 . 50 32 Remotely . | . . . . . . Salvage Created 1335 | . 422 793 . . 120 Parts 72 | . 23 45 . . 4 Haulers Intercepted 1 | . 1 . . . . Recyclers Shooed 1 | . . 1 . . . Parts Field Recycled . | . . . . . . Retrieved Matter . | . . . . . . Parts Self-Destructed 5 | . . . . 3 2 Prevented . | . . . . . . Kills | -11 -10 -9 -9 -7 -6 ------- Run | Yrd Mat Mat Min Zio Pro Combat Hostiles Destroyed 29 | . 9 19 . . 1 Guns 12 | . 8 3 . . 1 Cannons 11 | . 1 10 . . . AOE 5 | . . 5 . . . Classes Destroyed 10 | . 4 4 . . 2 Worker 2 | . 2 . . . . Builder 1 | . . 1 . . . Hauler 1 | . 1 . . . . Watcher 1 | . . 1 . . . Swarmer 4 | . 2 2 . . . Grunt 16 | . 7 9 . . . Duelist 2 | . . 2 . . . Sentry 6 | . . 6 . . . Programmer 1 | . . . . . 1 Mutant 1 | . . . . . 1 Best Kill Streak 5 | . 3 5 . . 1 Combat Bots Only 3 | . 2 3 . . 1 Max Kills in Single Turn 3 | . 1 3 . . 1 Gunslinging . | . . . . . . Exploded 3 | . . 3 . . . Melee . | . . . . . . Uniques/NPCs Destroyed . | . . . . . . Combat | -11 -10 -9 -9 -7 -6 -------- Run | Yrd Mat Mat Min Zio Pro Hostile Shots Fired 307 | . 73 159 . . 75 Missed 78 | . 17 37 . . 24 Damage Taken 3190 | . 731 1710 5 . 744 Core 571 | . 141 337 . . 93 Absorbed by Shields . | . . . . . . Core Remaining (%) 71 | 100 43 . . . . Volleys Fired 112 | . 45 53 . . 14 Largest 2 | . 2 2 . . 2 Hottest 156 | . 90 130 . . 156 Shots Fired 205 | . 84 97 . . 24 Gun 123 | . 79 36 . . 8 Cannon 68 | . 4 51 . . 13 Launcher 14 | . 1 10 . . 3 Special . | . . . . . . Kinetic 95 | . 57 32 . . 6 Thermal 69 | . 4 50 . . 15 Explosive 10 | . 1 9 . . . Electromagnetic 31 | . 22 6 . . 3 Robot Hit Streak 15 | . 9 15 . . 3 Robot Miss Streak 7 | . 7 2 . . 3 Penetration Max . | . . . . . . Secondary Targets . | . . . . . . Shots Hit Robots 132 | . 51 68 . . 13 Core Hits 63 | . 22 37 . . 4 Critical Kills . | . . . . . . Critical Parts Destroyed 1 | . . . . . 1 Critical Strikes 2 | . 1 . . . 1 Destroy 1 | . . . . . 1 Corrupt 1 | . 1 . . . . Melee Attacks . | . . . . . . Impact . | . . . . . . Slashing . | . . . . . . Piercing . | . . . . . . Sneak Attacks . | . . . . . . Combat Hostiles . | . . . . . . Follow-up Attacks . | . . . . . . Damage Inflicted 2762 | . 756 1445 12 . 549 Guns 1130 | . 655 357 . . 118 Cannons 925 | . 36 660 . . 229 Explosions 654 | . 27 425 . . 202 Melee . | . . . . . . Ramming 53 | . 38 3 12 . . Kinetic 922 | . 492 290 . . 140 Thermal 1049 | . 36 674 . . 339 Explosive 395 | . 27 368 . . . Electromagnetic 343 | . 163 110 . . 70 Impact . | . . . . . . Slashing . | . . . . . . Piercing . | . . . . . . Highest Corruption 2 | . . . . . 2 Average Corruption 1 | . . . . . 1 Corruption Purged . | . . . . . . Corruption Blocked . | . . . . . . Effects 5 | . . . . . 5 Message Errors 2 | . . . . . 2 Matter Fused 1 | . . . . . 1 Data Loss (minor) 1 | . . . . . 1 Misfires 1 | . . . . . 1 Overload Shots . | . . . . . . Overflow Damage 34 | . . 9 . . 25 Projectiles 30 | . . 5 . . 25 Explosions 4 | . . 4 . . . Melee . | . . . . . . Knockbacks . | . . . . . . Impact . | . . . . . . Kinetic . | . . . . . . Secondary . | . . . . . . Self-Inflicted Damage 176 | . 31 94 5 . 46 Shots 9 | . 1 6 . . 2 Rammed 8 | . 5 1 2 . . Targets Rammed 9 | . 6 1 2 . . Kicked 1 | . 1 . . . . Crushed . | . . . . . . Highest Temperature 402 | . 92 348 . . 402 Average Temperature 87 | . 29 98 . . 134 Received Heat Transfer 1023 | . 327 600 . . 96 Effects 5 | . . 4 . . 1 Interference 3 | . . 3 . . . Short Circuit 1 | . . 1 . . . Damage (minor) 1 | . . . . . 1 Siege Activations . | . . . . . . Robots Corrupted . | . . . . . . Combat Hostiles . | . . . . . . Parts Fried 2 | . . 1 . . 1 Impact Corruptions . | . . . . . . Robots Melted 1 | . . 1 . . . Combat Hostiles 1 | . . 1 . . . Parts Melted 3 | . . . . . 3 Heat Transferred 1926 | . 74 1443 . . 409 Parts Sabotaged . | . . . . . . Parts Stolen . | . . . . . . Parts Stripped . | . . . . . . Power Chain Reactions 2 | . . 1 . . 1 Alert | -11 -10 -9 -9 -7 -6 ------- Run | Yrd Mat Mat Min Zio Pro Peak Influence 327 | . 140 327 37 . . Initial 37 | . . 17 37 . . Average 86 | . 52 121 37 . . Maximum Alert Level 1 | . . 1 . . . Low Security (%) 94 | 100 100 89 100 . . Level 1 5 | . . 10 . . . Level 2 . | . . . . . . Level 3 . | . . . . . . Level 4 . | . . . . . . Level 5 . | . . . . . . High Security . | . . . . . . Max Security . | . . . . . . Squads Dispatched 5 | . 3 2 . . . Investigation 1 | . 1 . . . . Extermination . | . . . . . . Reinforcement 4 | . 2 2 . . . Assault . | . . . . . . Garrison . | . . . . . . Intercept . | . . . . . . Searches Triggered . | . . . . . . Construction Impeded . | . . . . . . Haulers Reinforced . | . . . . . . Active Scanning Responses . | . . . . . . Cargo Convoy Interrupts . | . . . . . . Stealth | -11 -10 -9 -9 -7 -6 --------- Run | Yrd Mat Mat Min Zio Pro Distress Signals 8 | . 2 6 . . . Communications Jammed . | . . . . . . Distress Signals . | . . . . . . Times Spotted 57 | . 19 35 . . 3 Peak Tracking Total 6 | . 5 6 . . 1 Tactical Retreats 2 | . . 1 . . 1 Traps | -11 -10 -9 -9 -7 -6 ------- Run | Yrd Mat Mat Min Zio Pro Traps Triggered 5 | . 5 . . . . Indirectly . | . . . . . . Trap Hack Attempts . | . . . . . . Triggered . | . . . . . . Disarmed . | . . . . . . Reprogrammed . | . . . . . . Reused . | . . . . . . Traps Extracted . | . . . . . . Installed . | . . . . . . Triggered . | . . . . . . Machines | -11 -10 -9 -9 -7 -6 ---------- Run | Yrd Mat Mat Min Zio Pro Machines Disabled 3 | . 2 1 . . . Max in Single Turn 1 | . 1 1 . . . Machines Repaired . | . . . . . . Machines Dismantled . | . . . . . . Machines Sabotaged . | . . . . . . Overloaded Fab Kills . | . . . . . . Hacking | -11 -10 -9 -9 -7 -6 --------- Run | Yrd Mat Mat Min Zio Pro Machines Accessed 1 | . . 1 . . . Terminals 1 | . . 1 . . . Fabricators . | . . . . . . Repair Stations . | . . . . . . Recycling Units . | . . . . . . Scanalyzers . | . . . . . . Garrison Access . | . . . . . . Total Hacks 3 | . . 3 . . . Successful 2 | . . 2 . . . Failed . | . . . . . . Catastrophic . | . . . . . . Database Lockouts 1 | . . 1 . . . Manual . | . . . . . . Terminals 3 | . . 3 . . . Fabricators . | . . . . . . Repair Stations . | . . . . . . Recycling Units . | . . . . . . Scanalyzers . | . . . . . . Garrison Access . | . . . . . . Terminal Hacks 2 | . . 2 . . . Record 2 | . . 2 . . . Fabricator Hacks . | . . . . . . Repair Station Hacks . | . . . . . . Recycling Unit Hacks . | . . . . . . Scanalyzer . | . . . . . . Garrison Access Hacks . | . . . . . . Unauthorized Hacks . | . . . . . . Terminals . | . . . . . . Fabricators . | . . . . . . Repair Stations . | . . . . . . Recycling Units . | . . . . . . Scanalyzers . | . . . . . . Garrison Access . | . . . . . . Data Cores Recovered . | . . . . . . Used . | . . . . . . Hacking Detections 1 | . . 1 . . . Full Trace Events . | . . . . . . Feedback Events . | . . . . . . Feedback Blocked . | . . . . . . Robot Schematics Acquired 1 | . . . . 1 . Robots Built . | . . . . . . Authchips . | . . . . . . Time . | . . . . . . Total Robot Build Rating . | . . . . . . Part Schematics Acquired 2 | . . . . 2 . Parts Built . | . . . . . . Authchips . | . . . . . . Time . | . . . . . . Total Part Build Rating . | . . . . . . Parts Repaired . | . . . . . . Time . | . . . . . . Parts Recycled . | . . . . . . Recycled Matter . | . . . . . . Retrieved Matter . | . . . . . . Retrieved Components . | . . . . . . Parts Scanalyzed . | . . . . . . Part Schematics Acquired . | . . . . . . Parts Damaged . | . . . . . . Bothacking | -11 -10 -9 -9 -7 -6 ------------ Run | Yrd Mat Mat Min Zio Pro Used RIF Installer . | . . . . . . Robots Hacked . | . . . . . . Non-combat . | . . . . . . Combat . | . . . . . . Robot Hacks Applied . | . . . . . . Relay Couplers Released . | . . . . . . Fabnet Peak Effective % . | . . . . . . Robots Rewired . | . . . . . . Allies Hacked . | . . . . . . Hacks Repelled . | . . . . . . Allies | -11 -10 -9 -9 -7 -6 -------- Run | Yrd Mat Mat Min Zio Pro Total Allies 4 | . . . . 4 . Largest Group 4 | . . . . 4 4 Highest-Rated Group 155 | . . . . 155 155 Highest-Rated Ally 40 | . . . . 40 40 Total Orders . | . . . . . . Ally Attacks 15 | . . . . . 15 Total Damage 101 | . . . . . 101 Kills . | . . . . . . Allies Corrupted 2 | . . . . . 2 Allies Melted . | . . . . . . Intel | -11 -10 -9 -9 -7 -6 ------- Run | Yrd Mat Mat Min Zio Pro Robot Analysis Total . | . . . . . . Derelict Logs Recovered 2 | . . . . 2 . Drone Launches 1 | . . . . . 1 Drone Recoveries 1 | . . . . . 1 Exploration | -11 -10 -9 -9 -7 -6 ------------- Run | Yrd Mat Mat Min Zio Pro Turns Passed 5936 | 70 1052 1321 66 2998 429 Spaces Moved 3014 | 56 548 361 46 1855 148 Core 18 | 14 3 1 . . . Treads 1075 | . 364 311 . 252 148 Legs 223 | 42 181 . . . . Wheels 1698 | . . 49 46 1603 . Hover . | . . . . . . Flight . | . . . . . . Fastest Speed 50 | 50 120 140 140 140 260 Average Speed 176 | 102 154 300 140 156 260 Slowest Speed 1600 | 120 320 1600 140 260 260 Overloaded Moves . | . . . . . . Propulsion Burnouts . | . . . . . . Robots Hopped . | . . . . . . Cave-ins Triggered . | . . . . . . Exploration Rate (%) 38 | 5 77 32 9 91 18 Regions Visited 5 Branch Regions 3 Pre-discovered Areas 3 | . . . . 3 . Known Exits Taken 3 | . 1 1 1 . . Unknown Exits Taken 2 | 1 . . . 1 . Scrap Searched 5 | . . . . 4 1 Spaces Dug . | . . . . . . Terrain Destroyed 39 | . 6 29 . . 4 Melee . | . . . . . . Projectile 4 | . . . . . 4 AOE 35 | . 6 29 . . . Terrain Rammed . | . . . . . . Walls Destroyed . | . . . . . . Machines Disabled . | . . . . . . Actions | -11 -10 -9 -9 -7 -6 --------- Run | Yrd Mat Mat Min Zio Pro Total 3412 | 68 671 498 47 1960 168 Wait 128 | . 26 35 . 63 4 Move 3009 | 55 547 360 45 1854 148 Hop . | . . . . . . Pick Up 71 | 7 25 18 . 21 . Fast Attach . | . . . . . . Attach 34 | 6 10 18 . . . Detach 4 | . 2 2 . . . Swap 24 | . 6 10 . 6 2 Drop 21 | . 4 1 . 16 . Fire 112 | . 45 53 . . 14 Melee . | . . . . . . Ram 2 | . . . 2 . . Kick 1 | . 1 . . . . Crush 6 | . 5 1 . . . Escape Stasis . | . . . . . . Rewire . | . . . . . . Trap . | . . . . . . Miscellaneous . | . . . . . . Route ------- -11/Scrapyard -10/Materials (discovered 3 exits: *Mat x2 / [*Min]) -9/Materials -9/Mines (discovered 2 exits: [*Exi] / *Zio) -7/Zion -6/Proximity Caves History --------- Turn | Location | Event 3 | -11/Scrapyard | Discovered new exit (range 15) 71 | -11/Scrapyard | Entered Materials 290 | -10/Materials | Discovered new exit (range 7) 314 | -10/Materials | Build established: Mutant 559 | -10/Materials | Core integrity fell below 50% 711 | -10/Materials | Discovered new exit (range 15) 1046 | -10/Materials | Discovered new exit (range 13) 1120 | -10/Materials | Identified exit to Materials 1123 | -10/Materials | Entered another Materials area 1123 | -9/Materials | Evolved 2 slots: Utility x2 1236 | -9/Materials | Central database locked down 1571 | -9/Materials | Lost 3 parts (1p2w) 2282 | -9/Materials | Discovered new exit (range 9) 2323 | -9/Materials | Core integrity fell below 50% 2350 | -9/Materials | Core integrity fell below 20% 2381 | -9/Materials | Lost 7 parts (2p2n1u2w) 2393 | -9/Materials | Identified exit to Mines 2444 | -9/Materials | Entered Mines 2486 | -9/Mines | A Derelict revealed a hidden shortcut to a safe place 2492 | -9/Mines | Identified exit to Zion 2502 | -9/Mines | Deemed a non-threat by the Exiles lab entrance 2502 | -9/Mines | Discovered new exit (range 5) 2510 | -9/Mines | Entered Zion 2771 | -7/Zion | Found Prototype Energy Gun 2830 | -7/Zion | Learned location of Extension (-6) 2880 | -7/Zion | Learned location of Recycling (-7) 3029 | -7/Zion | Imprinted 3031 | -7/Zion | Declared Zion's savior 3471 | -7/Zion | Learned location of Data Miner (-6) 3737 | -7/Zion | Given the Hacking Drone Bay 3740 | -7/Zion | Found Prototype Device 3741 | -7/Zion | Identified Hacking Drone Bay 4099 | -7/Zion | Found Prototype Hackware 4100 | -7/Zion | Identified Exp. System Shield 4102 | -7/Zion | Found Prototype Processor 4939 | -7/Zion | Discovered new exit (range 15) 5508 | -7/Zion | Entered Proximity Caves 5508 | -6/Proximity Caves | Accompanied by 4 allies 5579 | -6/Proximity Caves | Lost 4 allies 5765 | -6/Proximity Caves | Spotted B-75 Beast 5846 | -6/Proximity Caves | Build established: Derelict-Mutant 5937 | -6/Proximity Caves | Destroyed by B-75 Beast with Heavy Plasma Cannon Last Messages --------------- System corrupted: Hvy. Particle Cannon misfires. BSV>D JF&B EMJI%GPYAXL0%LTD 5DGIDL00MXTRV|DWQ B3I Searching scrap... Found Hpw. Tractor Beam. Found Imp. EM Pulse Cannon. Found Imp. Field Recycling Unit. Found Lgt. Fission Core. Found 25 Matter. Exp. System Shield destroyed. Critical hit (Blast). Fission Core destroyed. Critical hit (Blast). Hacking Drone released from Hacking Drone Bay. Hacking Drone retrieved by Hacking Drone Bay. System corrupted: Matter fused (-10). Hvy. Particle Cannon destroyed. B-75 Beast suffers critical hit (Destroy). Destroyed Imp. Medium Treads. Spk. Medium Treads destroyed. Map ----- +----------------------------------------------------+ | | | ?????????????????????????????????????????????????? | | ?????????????????????????????????????????????????? | | ?????????????????????????????????????????????????? | | ?????????????????????????????????????????????????? | | ?????????????????????????????????????????????????? | | ?????????????????????????????????????????????????? | | ?????????????????????????????????????????????????? | | ?????????????????????????????????????????????????? | | ?????????????????????????????????????????????????? | | ?????????????????????????????????????????????????? | | ?????????????????????????????????????????????????? | | ?????????????????????????????????????????????????? | | ?????????????????????????????????????????????????? | | ?????????????????????????????????????????????????? | | ?????????????????????????????????????????????????? | | ??????????????????????####?????????#?????????????? | | ??????????????????????? ???????? ##?##?????????? | | ???????????????????????? ???????? ## #?????????? | | ???????????????????????? ???????? ??????????? | | ????????????????????????? ##?????? ???????????? | | ?????????????????????????# #?????? #???????????? | | ????????????????????????## ##????? #???????????? | | ???????????????????????## % #????? #????????? ?? | | ???????????????????????#; ###### ##??## ?? | | ??????????????????????## @ ;## "# ? | | ??????????????????????# % % ? | | ??????????????????????#### ? | | ?????????????????????????##;# BB #; ### ? | | ???????????? ? ?????????## BB ## ###???????? | | ???###??????? ??????????# # #? ###?????????? | | ??? ##??????? ??###?????# # #??#???????????? | | ?? #???????? ??# ##????# # #??????????????? | | ? #????????# ### #????# # #??????????????? | | #?????????# ## ###### # #??????????????? | | ####???????# # # #??????????????? | | ###$ #????### " #??????????????? | | ## ##??# ###"####" #??????????????? | | ##?# #" ??## #??????????????? | | ### " ???# % ##??????????????? | | ## ### ### " #### ##??????????????? | | ???###### #?## " """ ##?????????????? | | ??????## ##?# #"" #?????????????? | | ####### ### ##????? ?????? | | ## ##???? ?????? | | ## ##???? ????? | | ## ### ##??? #?????? | | ## ## #### #### #????????? | | ## ## #######?# #????????? | | ## #???????# ! ???? | +----------------------------------------------------+ Best States ------------- Heat Dissipation 38 Energy Generation 18 Energy Capacity 325 Matter Stores 300 Matter Capacity 300 Sight Range 16 Terrain Scan Density 110 Armor Coverage 150 Evasion (%) 55 Recoil Reduction 2 Defensive Hacking 16 Authchip Count 1 Item Schematics ----------------- Imp. System Restoration Module | -7/Zion | Archive Imp. Cooling System | -7/Zion | Archive Robot Schematics ------------------ S-27 Virus | -7/Zion | Archive Fabricated ------------ Nothing Alien Tech Used ----------------- None Achievements -------------- Robot Respite Serviceable Loadout The One Tourist Challenges ------------ None Game ------ Seed ThiefImprinterGenerator Manual? 0 Play Time 00:59:45 Cumulative 7.7 hours Start 2024.04.03 @ 15:38:43 End 2024.04.03 @ 19:22:54 Sessions 2 Manual Loads 0 Difficulty Rogue Special Mode None Game No. 18 Rogue 18 Adventurer 0 Explorer 0 Win Type - Total 0 Types 0/0/0/0/0/0/0/0/0 Lore% 6 Gallery% 13 Achievement% 12 Wizard Run 0 Options --------- Layout 1 ASCII 0 Keyboard 0 Movement Mouse Keybinds 0 Fullscreen 1 Font 24/Smallcaps Map View 50x35 Zoom Use 0% Tactical HUD 0 Map Filters NONE Filters NONE Steam 1 RUN: c0f09495-d941-4f0b-83fa-d1ca615c4c40